[Event "*** SCC Grand Prix: Titled Tuesday Blitz"]
[Site "Chess.com"]
[Date "2020.10.06"]
[Round "5"]
[White "KiranManisha"]
[Black "BigAl"]
[Result "0-1"]
[WhiteElo "2360"]
[BlackElo "2511"]
[TimeControl "180+1"]
[EndTime "10:58:47 PDT"]
[Termination "BigAl won by checkmate"]

1. e4 {[%clk 0:03:00.9]} 1... c6 {[%clk 0:02:57.3]} 2. d4 {[%clk 0:03:00.2]}
2... d5 {[%clk 0:02:58.2]} 3. e5 {[%clk 0:03:00.2]} 3... Bf5 {[%clk 0:02:58.3]}
4. h4 {[%clk 0:03:00.2]} 4... c5 {[%clk 0:02:57.9]} 5. c3 {[%clk 0:02:48.8]}
5... Nc6 {[%clk 0:02:57.7]} 6. g4 {[%clk 0:02:45.6]} 6... Bd7 {[%clk 0:02:57]}
7. f4 {[%clk 0:02:45.4]} 7... cxd4 {[%clk 0:02:50.2]} 8. cxd4 {[%clk 0:02:46.3]}
8... h5 {[%clk 0:02:44.3]} 9. g5 {[%clk 0:02:43.6]} 9... g6 {[%clk 0:02:24.2]}
10. Nc3 {[%clk 0:02:41.8]} 10... Bg4 {[%clk 0:02:23.2]} 11. Be2 {[%clk
0:02:41.3]} 11... Bxe2 {[%clk 0:02:23]} 12. Ngxe2 {[%clk 0:02:42.2]} 12... e6
{[%clk 0:02:23.6]} 13. Be3 {[%clk 0:02:36.9]} 13... Nge7 {[%clk 0:02:19.1]} 14.
Qd2 {[%clk 0:02:36.9]} 14... Nf5 {[%clk 0:02:19]} 15. O-O-O {[%clk 0:02:36.9]}
15... Na5 {[%clk 0:02:13.5]} 16. b3 {[%clk 0:02:31.7]} 16... Ba3+ {[%clk
0:02:10.7]} 17. Kb1 {[%clk 0:02:31.2]} 17... Rc8 {[%clk 0:02:03]} 18. Na4 {[%clk
0:02:28.1]} 18... b6 {[%clk 0:01:57.6]} 19. Qd3 {[%clk 0:02:23]} 19... Qd7
{[%clk 0:01:51.9]} 20. Bc1 {[%clk 0:02:16.8]} 20... Bb4 {[%clk 0:01:38.9]} 21.
Ng3 {[%clk 0:02:12.2]} 21... Nxg3 {[%clk 0:01:36.9]} 22. Qxg3 {[%clk 0:02:13.1]}
22... O-O {[%clk 0:01:35.4]} 23. Bd2 {[%clk 0:02:04.2]} 23... Bxd2 {[%clk
0:01:34.9]} 24. Rxd2 {[%clk 0:02:05.1]} 24... Nc4 {[%clk 0:01:32.9]} 25. bxc4
{[%clk 0:01:51.2]} 25... Qxa4 {[%clk 0:01:32.3]} 26. cxd5 {[%clk 0:01:48.1]}
26... Qb4+ {[%clk 0:01:31]} 27. Rb2 {[%clk 0:01:45.3]} 27... Qxd4 {[%clk
0:01:31.1]} 28. Re1 {[%clk 0:01:30.4]} 28... Qxd5 {[%clk 0:01:30.5]} 29. Qg2
{[%clk 0:01:24.1]} 29... Qd3+ {[%clk 0:01:29.3]} 30. Ka1 {[%clk 0:01:22.9]}
30... Rfd8 {[%clk 0:01:29.9]} 31. Reb1 {[%clk 0:01:20.7]} 31... Rd7 {[%clk
0:01:17.7]} 32. Qe2 {[%clk 0:01:06.8]} 32... Qd4 {[%clk 0:01:13.6]} 33. f5
{[%clk 0:01:02.9]} 33... gxf5 {[%clk 0:01:04.9]} 34. Qxh5 {[%clk 0:00:51.2]}
34... Qg4 {[%clk 0:00:52.7]} 35. Qxg4 {[%clk 0:00:49.7]} 35... fxg4 {[%clk
0:00:53.6]} 36. Rb4 {[%clk 0:00:47.8]} 36... g3 {[%clk 0:00:52.4]} 37. R4b3
{[%clk 0:00:44.8]} 37... Rc4 {[%clk 0:00:41.6]} 38. Rxg3 {[%clk 0:00:41.2]}
38... Rxh4 {[%clk 0:00:41.8]} 39. g6 {[%clk 0:00:40.7]} 39... Rh2 {[%clk
0:00:19.3]} 40. gxf7+ {[%clk 0:00:38.9]} 40... Kxf7 {[%clk 0:00:19]} 41. Rf1+
{[%clk 0:00:38.1]} 41... Ke8 {[%clk 0:00:19.2]} 42. Rg8+ {[%clk 0:00:35.6]}
42... Ke7 {[%clk 0:00:19.6]} 43. Rg7+ {[%clk 0:00:34.9]} 43... Kd8 {[%clk
0:00:20.1]} 44. Rxd7+ {[%clk 0:00:30.6]} 44... Kxd7 {[%clk 0:00:20.4]} 45. Rf7+
{[%clk 0:00:31.1]} 45... Kc6 {[%clk 0:00:20.7]} 46. Rxa7 {[%clk 0:00:31]} 46...
Re2 {[%clk 0:00:20.3]} 47. Re7 {[%clk 0:00:28.7]} 47... Rxe5 {[%clk 0:00:20]}
48. Kb2 {[%clk 0:00:28.8]} 48... Re3 {[%clk 0:00:20.6]} 49. Kc2 {[%clk
0:00:28.4]} 49... Kd6 {[%clk 0:00:20]} 50. Rb7 {[%clk 0:00:27.8]} 50... Kc6
{[%clk 0:00:20.3]} 51. Re7 {[%clk 0:00:27.6]} 51... Kd5 {[%clk 0:00:18.3]} 52.
Rb7 {[%clk 0:00:26.8]} 52... Kc5 {[%clk 0:00:17.8]} 53. Rc7+ {[%clk 0:00:26]}
53... Kb4 {[%clk 0:00:18.2]} 54. Rb7 {[%clk 0:00:24]} 54... b5 {[%clk
0:00:18.6]} 55. Kd2 {[%clk 0:00:22.8]} 55... Ra3 {[%clk 0:00:18.4]} 56. Re7
{[%clk 0:00:21.3]} 56... Rxa2+ {[%clk 0:00:18.3]} 57. Kc1 {[%clk 0:00:21.1]}
57... Ra6 {[%clk 0:00:19.2]} 58. Kb2 {[%clk 0:00:20.2]} 58... Rd6 {[%clk
0:00:19.3]} 59. Rh7 {[%clk 0:00:19.6]} 59... e5 {[%clk 0:00:17.8]} 60. Rh5
{[%clk 0:00:18.4]} 60... Rd2+ {[%clk 0:00:16.6]} 61. Kc1 {[%clk 0:00:17.8]}
61... Rd5 {[%clk 0:00:17.5]} 62. Kb2 {[%clk 0:00:17.9]} 62... Kc4 {[%clk
0:00:17.7]} 63. Kc2 {[%clk 0:00:16.9]} 63... e4 {[%clk 0:00:17.6]} 64. Rh4
{[%clk 0:00:16.3]} 64... Kd4 {[%clk 0:00:17.3]} 65. Rh8 {[%clk 0:00:13.9]} 65...
Rg5 {[%clk 0:00:15.9]} 66. Kd2 {[%clk 0:00:12.6]} 66... Rg2+ {[%clk 0:00:15.3]}
67. Ke1 {[%clk 0:00:11.2]} 67... Kd3 {[%clk 0:00:14.6]} 68. Rh5 {[%clk
0:00:09.8]} 68... b4 {[%clk 0:00:14]} 69. Kf1 {[%clk 0:00:10.3]} 69... Rb2
{[%clk 0:00:11.4]} 70. Rh3+ {[%clk 0:00:10.2]} 70... e3 {[%clk 0:00:11.4]} 71.
Rg3 {[%clk 0:00:09.9]} 71... Rb1+ {[%clk 0:00:11.8]} 72. Kg2 {[%clk 0:00:09.8]}
72... b3 {[%clk 0:00:11.8]} 73. Rxe3+ {[%clk 0:00:10.2]} 73... Kxe3 {[%clk
0:00:11.8]} 74. Kg3 {[%clk 0:00:11.1]} 74... Rc1 {[%clk 0:00:12.1]} 75. Kg4
{[%clk 0:00:12]} 75... b2 {[%clk 0:00:13]} 76. Kf5 {[%clk 0:00:12.6]} 76...
b1=Q+ {[%clk 0:00:12.9]} 77. Ke5 {[%clk 0:00:13.5]} 77... Kf2 {[%clk 0:00:12.9]}
78. Kf6 {[%clk 0:00:14.4]} 78... Re1 {[%clk 0:00:12.8]} 79. Kg5 {[%clk
0:00:14.1]} 79... Qe4 {[%clk 0:00:13.7]} 80. Kh5 {[%clk 0:00:14.5]} 80... Ke2
{[%clk 0:00:14.2]} 81. Kg5 {[%clk 0:00:14.7]} 81... Kd2 {[%clk 0:00:15.1]} 82.
Kh6 {[%clk 0:00:15.3]} 82... Qe2 {[%clk 0:00:15.7]} 83. Kg5 {[%clk 0:00:16.2]}
83... Rf1 {[%clk 0:00:16.6]} 84. Kh6 {[%clk 0:00:16.9]} 84... Qg2 {[%clk
0:00:17.5]} 85. Kh7 {[%clk 0:00:16.8]} 85... Rh1# {[%clk 0:00:18.4]} 0-1

[Event "*** SCC Grand Prix: Titled Tuesday Blitz"]
[Site "Chess.com"]
[Date "2020.10.06"]
[Round "5"]
[White "MVM2008"]
[Black "alejanchess73"]
[Result "1/2-1/2"]
[WhiteElo "2221"]
[BlackElo "2426"]
[TimeControl "180+1"]
[EndTime "10:58:58 PDT"]
[Termination "Game drawn by repetition"]

1. e4 {[%clk 0:03:00.7]} 1... c5 {[%clk 0:02:58.2]} 2. Nf3 {[%clk 0:02:58.2]}
2... d6 {[%clk 0:02:58.4]} 3. d4 {[%clk 0:02:55.6]} 3... cxd4 {[%clk 0:02:58.3]}
4. Nxd4 {[%clk 0:02:56.5]} 4... Nf6 {[%clk 0:02:58.5]} 5. Nc3 {[%clk 0:02:54.9]}
5... a6 {[%clk 0:02:58.7]} 6. Bc4 {[%clk 0:02:54.3]} 6... e6 {[%clk 0:02:58.5]}
7. Bb3 {[%clk 0:02:54.4]} 7... Be7 {[%clk 0:02:58.5]} 8. g4 {[%clk 0:02:48.5]}
8... O-O {[%clk 0:02:54]} 9. g5 {[%clk 0:02:46.7]} 9... Ne8 {[%clk 0:02:54]} 10.
h4 {[%clk 0:02:45.2]} 10... Nc6 {[%clk 0:02:53.9]} 11. Be3 {[%clk 0:02:37.2]}
11... Na5 {[%clk 0:02:45.4]} 12. f4 {[%clk 0:02:25.3]} 12... Nxb3 {[%clk
0:02:44.9]} 13. Nxb3 {[%clk 0:02:09.7]} 13... b5 {[%clk 0:02:39.7]} 14. a3
{[%clk 0:01:54]} 14... Bb7 {[%clk 0:02:39.2]} 15. h5 {[%clk 0:01:51.9]} 15...
Nc7 {[%clk 0:02:36.4]} 16. g6 {[%clk 0:01:37]} 16... h6 {[%clk 0:02:34.5]} 17.
Rg1 {[%clk 0:01:29]} 17... Bh4+ {[%clk 0:02:28.6]} 18. Kf1 {[%clk 0:01:24.9]}
18... fxg6 {[%clk 0:02:26.9]} 19. Rxg6 {[%clk 0:01:20.3]} 19... d5 {[%clk
0:02:19.7]} 20. Qg4 {[%clk 0:01:14.5]} 20... Bf6 {[%clk 0:02:14.5]} 21. Ke2
{[%clk 0:00:41.9]} 21... dxe4 {[%clk 0:02:11.6]} 22. Rd1 {[%clk 0:00:39.6]}
22... Qe8 {[%clk 0:01:51.5]} 23. Rg1 {[%clk 0:00:29.1]} 23... Qf7 {[%clk
0:01:32.7]} 24. Bd4 {[%clk 0:00:25.6]} 24... Bxd4 {[%clk 0:01:21.5]} 25. Nxd4
{[%clk 0:00:25.8]} 25... Ne8 {[%clk 0:01:21.4]} 26. Nxe6 {[%clk 0:00:23.2]}
26... Bc8 {[%clk 0:01:12.2]} 27. f5 {[%clk 0:00:20.4]} 27... Bxe6 {[%clk
0:01:11.7]} 28. fxe6 {[%clk 0:00:19.9]} 28... Qf2+ {[%clk 0:01:08.8]} 29. Kd1
{[%clk 0:00:16.5]} 29... Rd8+ {[%clk 0:01:03.9]} 30. Kc1 {[%clk 0:00:16.6]}
30... Qf4+ {[%clk 0:00:52.5]} 31. Qxf4 {[%clk 0:00:14.1]} 31... Rxf4 {[%clk
0:00:53]} 32. Ne2 {[%clk 0:00:10.5]} 32... Rf6 {[%clk 0:00:50.4]} 33. Ng3 {[%clk
0:00:06.9]} 33... Rxg6 {[%clk 0:00:49.4]} 34. hxg6 {[%clk 0:00:07.8]} 34... e3
{[%clk 0:00:48.8]} 35. Nf5 {[%clk 0:00:05.9]} 35... e2 {[%clk 0:00:45.2]} 36.
Re1 {[%clk 0:00:04.9]} 36... Nd6 {[%clk 0:00:30]} 37. Nxd6 {[%clk 0:00:04.6]}
37... Rxd6 {[%clk 0:00:30]} 38. Rxe2 {[%clk 0:00:05.5]} 38... Kf8 {[%clk
0:00:26.8]} 39. b3 {[%clk 0:00:05.2]} 39... Ke7 {[%clk 0:00:26.1]} 40. Rf2
{[%clk 0:00:04.8]} 40... Rxe6 {[%clk 0:00:20.3]} 41. Rf7+ {[%clk 0:00:05.7]}
41... Kd6 {[%clk 0:00:20.3]} 42. Rxg7 {[%clk 0:00:06.5]} 42... h5 {[%clk
0:00:19.4]} 43. Ra7 {[%clk 0:00:06.4]} 43... Ke5 {[%clk 0:00:19]} 44. g7 {[%clk
0:00:05.8]} 44... Rg6 {[%clk 0:00:18.9]} 45. Rxa6 {[%clk 0:00:06.1]} 45... Rxg7
{[%clk 0:00:19.5]} 46. Rh6 {[%clk 0:00:06.5]} 46... Rg5 {[%clk 0:00:18.8]} 47.
Kb2 {[%clk 0:00:07.1]} 47... Kf4 {[%clk 0:00:19.3]} 48. a4 {[%clk 0:00:07.4]}
48... bxa4 {[%clk 0:00:18.3]} 49. bxa4 {[%clk 0:00:08.3]} 49... Kg3 {[%clk
0:00:18.5]} 50. Kb3 {[%clk 0:00:08.6]} 50... h4 {[%clk 0:00:19]} 51. c4 {[%clk
0:00:09.1]} 51... h3 {[%clk 0:00:19.4]} 52. Kb4 {[%clk 0:00:09.5]} 52... Rg4
{[%clk 0:00:19.1]} 53. Kb5 {[%clk 0:00:08.5]} 53... Rh4 {[%clk 0:00:19.5]} 54.
Rg6+ {[%clk 0:00:09.1]} 54... Kf2 {[%clk 0:00:20.1]} 55. Rf6+ {[%clk 0:00:08.5]}
55... Ke1 {[%clk 0:00:20.5]} 56. Re6+ {[%clk 0:00:08.5]} 56... Kd2 {[%clk
0:00:20.5]} 57. Rd6+ {[%clk 0:00:08.3]} 57... Kc3 {[%clk 0:00:20.5]} 58. Rd1
{[%clk 0:00:07.6]} 58... h2 {[%clk 0:00:20.9]} 59. Rh1 {[%clk 0:00:07.6]} 59...
Rxc4 {[%clk 0:00:10.1]} 60. Rxh2 {[%clk 0:00:08]} 60... Rb4+ {[%clk 0:00:10.4]}
61. Ka5 {[%clk 0:00:08.5]} 61... Rb8 {[%clk 0:00:10.2]} 62. Rh3+ {[%clk
0:00:08.8]} 62... Kc4 {[%clk 0:00:10.7]} 63. Rh4+ {[%clk 0:00:09.4]} 63... Kc5
{[%clk 0:00:11.1]} 64. Rh5+ {[%clk 0:00:10]} 64... Kc6 {[%clk 0:00:11.5]} 65.
Rh6+ {[%clk 0:00:10.5]} 65... Kc7 {[%clk 0:00:11.8]} 66. Rh7+ {[%clk 0:00:09.9]}
66... Kc6 {[%clk 0:00:12.2]} 67. Rh6+ {[%clk 0:00:09.2]} 67... Kc5 {[%clk
0:00:12.2]} 68. Rh5+ {[%clk 0:00:07.8]} 68... Kc6 {[%clk 0:00:12.6]} 69. Rb5
{[%clk 0:00:06.3]} 69... Ra8+ {[%clk 0:00:10.9]} 70. Kb4 {[%clk 0:00:06.4]}
70... Kc7 {[%clk 0:00:11.2]} 71. a5 {[%clk 0:00:05.1]} 71... Rh8 {[%clk
0:00:10.9]} 72. Rg5 {[%clk 0:00:04.9]} 72... Kc6 {[%clk 0:00:10.3]} 73. Rg6+
{[%clk 0:00:05.1]} 73... Kb7 {[%clk 0:00:10.7]} 74. Kb5 {[%clk 0:00:03.5]} 74...
Rh5+ {[%clk 0:00:10.2]} 75. Kb4 {[%clk 0:00:03.8]} 75... Ka7 {[%clk 0:00:10.7]}
76. Rf6 {[%clk 0:00:03.1]} 76... Rg5 {[%clk 0:00:10.2]} 77. Rf7+ {[%clk
0:00:03.1]} 77... Ka6 {[%clk 0:00:10.3]} 78. Rf6+ {[%clk 0:00:04]} 78... Ka7
{[%clk 0:00:10.7]} 79. Rf7+ {[%clk 0:00:04.9]} 79... Ka6 {[%clk 0:00:11.2]} 80.
Rf6+ {[%clk 0:00:05.8]} 80... Ka7 {[%clk 0:00:11.8]} 1/2-1/2

[Event "*** SCC Grand Prix: Titled Tuesday Blitz"]
[Site "Chess.com"]
[Date "2020.10.06"]
[Round "5"]
[White "GoltsevDmitry2000"]
[Black "SamuelGhimpu2003"]
[Result "0-1"]
[WhiteElo "2704"]
[BlackElo "2528"]
[TimeControl "180+1"]
[EndTime "10:59:03 PDT"]
[Termination "SamuelGhimpu2003 won by checkmate"]

1. e4 {[%clk 0:02:59.9]} 1... e6 {[%clk 0:03:00]} 2. Nf3 {[%clk 0:03:00.2]} 2...
d5 {[%clk 0:03:00.3]} 3. exd5 {[%clk 0:03:01.1]} 3... exd5 {[%clk 0:03:00.4]} 4.
d4 {[%clk 0:03:02]} 4... Nf6 {[%clk 0:03:00.1]} 5. Bd3 {[%clk 0:03:00.5]} 5...
c5 {[%clk 0:02:59.4]} 6. dxc5 {[%clk 0:03:00.1]} 6... Bxc5 {[%clk 0:02:59]} 7.
O-O {[%clk 0:03:00.3]} 7... O-O {[%clk 0:02:59]} 8. Nbd2 {[%clk 0:02:59.8]} 8...
Nc6 {[%clk 0:02:56.2]} 9. Nb3 {[%clk 0:02:59.5]} 9... Bd6 {[%clk 0:02:56.3]} 10.
Bg5 {[%clk 0:02:58.4]} 10... Bc7 {[%clk 0:02:52.5]} 11. c4 {[%clk 0:02:55.8]}
11... dxc4 {[%clk 0:02:11.4]} 12. Bxc4 {[%clk 0:02:55.1]} 12... Qxd1 {[%clk
0:02:12.3]} 13. Raxd1 {[%clk 0:02:55.4]} 13... Ne4 {[%clk 0:02:12.6]} 14. Be3
{[%clk 0:02:51.1]} 14... Bg4 {[%clk 0:02:10.1]} 15. h3 {[%clk 0:02:48.3]} 15...
Bxf3 {[%clk 0:02:03.7]} 16. gxf3 {[%clk 0:02:49.2]} 16... Nf6 {[%clk 0:02:04]}
17. Nc5 {[%clk 0:02:46.8]} 17... Bb6 {[%clk 0:01:58]} 18. Nd7 {[%clk 0:02:28.3]}
18... Nxd7 {[%clk 0:01:53.5]} 19. Rxd7 {[%clk 0:02:24.9]} 19... Ne5 {[%clk
0:01:52.5]} 20. Bxb6 {[%clk 0:02:00.8]} 20... Nxd7 {[%clk 0:01:52.6]} 21. Be3
{[%clk 0:02:01.2]} 21... Rac8 {[%clk 0:01:39.9]} 22. Bd5 {[%clk 0:01:56.9]}
22... b6 {[%clk 0:01:35.5]} 23. Rd1 {[%clk 0:01:54.9]} 23... Ne5 {[%clk
0:01:28.6]} 24. b3 {[%clk 0:01:45.8]} 24... Rfd8 {[%clk 0:01:28.6]} 25. f4
{[%clk 0:01:34.7]} 25... Nc6 {[%clk 0:01:27.8]} 26. a4 {[%clk 0:01:09]} 26...
Nb4 {[%clk 0:01:12.6]} 27. Bf3 {[%clk 0:01:07.6]} 27... Rxd1+ {[%clk 0:01:13.5]}
28. Bxd1 {[%clk 0:01:08.5]} 28... Nd5 {[%clk 0:01:07.1]} 29. Bd2 {[%clk
0:01:08.1]} 29... f5 {[%clk 0:00:51.5]} 30. Kf1 {[%clk 0:01:05.7]} 30... Nc3
{[%clk 0:00:47.4]} 31. Bf3 {[%clk 0:00:53.8]} 31... Ne4 {[%clk 0:00:47.2]} 32.
Be3 {[%clk 0:00:47.8]} 32... Kf7 {[%clk 0:00:35.4]} 33. Be2 {[%clk 0:00:47.2]}
33... Nc3 {[%clk 0:00:25.4]} 34. Bc4+ {[%clk 0:00:45.8]} 34... Rxc4 {[%clk
0:00:25.8]} 35. bxc4 {[%clk 0:00:45.4]} 35... Nxa4 {[%clk 0:00:26.7]} 36. Ke2
{[%clk 0:00:44.8]} 36... Ke6 {[%clk 0:00:26.3]} 37. Kd3 {[%clk 0:00:44.5]} 37...
g6 {[%clk 0:00:26]} 38. h4 {[%clk 0:00:40]} 38... h5 {[%clk 0:00:24.4]} 39. Bd4
{[%clk 0:00:36.7]} 39... Nc5+ {[%clk 0:00:20.6]} 40. Kc3 {[%clk 0:00:35.9]}
40... Kd6 {[%clk 0:00:19.8]} 41. Kb4 {[%clk 0:00:35.5]} 41... Ne6 {[%clk
0:00:19.2]} 42. Be3 {[%clk 0:00:31.9]} 42... Kc6 {[%clk 0:00:20.1]} 43. f3
{[%clk 0:00:27.8]} 43... Nd8 {[%clk 0:00:20.2]} 44. Bd4 {[%clk 0:00:23.5]} 44...
Nb7 {[%clk 0:00:20.4]} 45. Be3 {[%clk 0:00:21.7]} 45... Nd6 {[%clk 0:00:20.4]}
46. Bd4 {[%clk 0:00:21.4]} 46... a5+ {[%clk 0:00:20.4]} 47. Kb3 {[%clk
0:00:19.6]} 47... b5 {[%clk 0:00:20.9]} 48. cxb5+ {[%clk 0:00:18.6]} 48... Kxb5
{[%clk 0:00:21.8]} 49. Be5 {[%clk 0:00:17.2]} 49... Nc4 {[%clk 0:00:21.3]} 50.
Bc3 {[%clk 0:00:15.7]} 50... a4+ {[%clk 0:00:21]} 51. Ka2 {[%clk 0:00:15.7]}
51... Kc5 {[%clk 0:00:20.9]} 52. Bf6 {[%clk 0:00:13.2]} 52... Kb4 {[%clk
0:00:20.9]} 53. Bd4 {[%clk 0:00:12.2]} 53... Nd2 {[%clk 0:00:20.6]} 54. Bf6
{[%clk 0:00:11.6]} 54... Nxf3 {[%clk 0:00:21.1]} 55. Be7+ {[%clk 0:00:11.5]}
55... Kc4 {[%clk 0:00:20.8]} 56. Ka3 {[%clk 0:00:12.4]} 56... Kb5 {[%clk
0:00:19.5]} 57. Bf6 {[%clk 0:00:12.9]} 57... Nd2 {[%clk 0:00:15.9]} 58. Be7
{[%clk 0:00:11.2]} 58... Nc4+ {[%clk 0:00:15.8]} 59. Ka2 {[%clk 0:00:11.6]}
59... Kc6 {[%clk 0:00:16.3]} 60. Bf6 {[%clk 0:00:11.6]} 60... Kd5 {[%clk
0:00:17.2]} 61. Be7 {[%clk 0:00:10.6]} 61... Ke4 {[%clk 0:00:18.1]} 62. Bg5
{[%clk 0:00:10.8]} 62... Ne3 {[%clk 0:00:17.6]} 63. Ka3 {[%clk 0:00:10.5]} 63...
Ng2 {[%clk 0:00:18.5]} 64. Kxa4 {[%clk 0:00:10]} 64... Nxf4 {[%clk 0:00:19.4]}
65. Kb3 {[%clk 0:00:10.4]} 65... Ng2 {[%clk 0:00:20.3]} 66. Kc2 {[%clk
0:00:10.3]} 66... Kf3 {[%clk 0:00:20.8]} 67. Kd3 {[%clk 0:00:09.7]} 67... Kg4
{[%clk 0:00:21.7]} 68. Ke2 {[%clk 0:00:10.1]} 68... Nxh4 {[%clk 0:00:22.6]} 69.
Bd8 {[%clk 0:00:10.5]} 69... f4 {[%clk 0:00:22.8]} 70. Kf2 {[%clk 0:00:11.4]}
70... Nf5 {[%clk 0:00:23.7]} 71. Kg2 {[%clk 0:00:12.3]} 71... f3+ {[%clk
0:00:22.6]} 72. Kf2 {[%clk 0:00:12.7]} 72... g5 {[%clk 0:00:22.7]} 73. Bc7
{[%clk 0:00:13.1]} 73... h4 {[%clk 0:00:22.2]} 74. Be5 {[%clk 0:00:13.5]} 74...
Ng3 {[%clk 0:00:21.7]} 75. Ke3 {[%clk 0:00:11.6]} 75... Ne4 {[%clk 0:00:19.6]}
76. Bb8 {[%clk 0:00:09]} 76... f2 {[%clk 0:00:20]} 77. Ke2 {[%clk 0:00:09.9]}
77... Kf5 {[%clk 0:00:18.2]} 78. Bh2 {[%clk 0:00:08.5]} 78... g4 {[%clk
0:00:18.4]} 79. Bb8 {[%clk 0:00:07.6]} 79... g3 {[%clk 0:00:18.1]} 80. Kf1
{[%clk 0:00:08.1]} 80... Nd2+ {[%clk 0:00:17.8]} 81. Kg2 {[%clk 0:00:09]} 81...
f1=Q# {[%clk 0:00:18.7]} 0-1